bitfinex-derivatives/quotes_ETHF0:USTF0_20250213
["timestamp","ask_amount","ask_price","bid_price","bid_amount"]
[1739409350545,0.5865,2738.7,2738.4,3.2078]
[1739409350750,1.31674,2738.7,2738.5,0.73028]
[1739409350946,0.5865,2738.7,2738.5,0.73028]
[1739409351347,0.5865,2738.7,2738.4,3.2078]
[1739409351547,0.73029,2738.5,2738.4,3.2078]
[1739409351846,0.5719,2738.6,2738.4,3.2078]
[1739409352043,1.30217,2738.6,2738.4,3.2078]
[1739409352240,1.30217,2738.6,2738.4,3.93811]
[1739409353246,0.73029,2738.5,2738.4,3.2078]
[1739409354262,0.5719,2738.6,2738.2,0.00547935]
[1739409354451,0.73034,2738.3,2738.2,0.00547935]
[1739409354750,2.38334,2738.3,2738.2,0.00547935]
[1739409355451,1.653,2738.3,2737.7,3.2078]
[1739409355658,0.73041,2738.1,2737.8,0.73046]
[1739409356154,0.5453,2738.2,2737.9,0.73043]
[1739409356557,1.27567,2738.2,2737.9,0.73043]
[1739409356755,1.27567,2738.2,2737.8,0.00547935]
[1739409356756,0.5453,2738.2,2737.8,3.21327935]
[1739409356957,1.653,2738.1,2737.8,3.21327935]
[1739409357160,1.653,2738.1,2738.0,0.73042]
[1739409357552,3.15184101,2738.7,2738.0,0.5852]
[1739409357855,2.38329,2738.5,2738.3,0.73033]
[1739409358648,2.2015,2738.5,2738.4,0.73031]
[1739409358854,0.5485,2738.5,2738.4,0.73031]
[1739409359056,0.73017,2739.0,2738.7,0.73022]
[1739409359253,2.38319,2738.9,2738.6,3.93805]
[1739409359448,0.5485,2738.8,2738.6,3.93805]
[1739409360160,0.5485,2738.8,2738.7,0.73023]
[1739409360375,2.2015,2738.8,2738.6,3.2078]
[1739409360572,0.73023,2738.7,2738.6,3.2078]
[1739409360770,3.15184101,2738.7,2738.0,3.93822]
[1739409360973,0.73042,2738.0,2737.9,0.566]
[1739409361271,0.73045,2737.9,2737.8,0.00547935]
[1739409361575,1.28505,2737.9,2737.8,0.00547935]
[1739409362574,0.5546,2737.9,2737.2,0.73063]
[1739409362774,3.88235101,2737.7,2737.3,3.2078]
[1739409363175,1.653,2737.6,2737.5,0.73055]
[1739409363370,0.5555,2737.8,2737.5,0.73055]
[1739409363578,0.5555,2737.8,2737.7,0.7305]
[1739409363876,2.2085,2737.8,2737.7,0.7305]
[1739409364078,0.5546,2737.9,2737.8,0.73047]
[1739409364375,0.00547935,2738.1,2738.0,0.73042]
[1739409364671,0.00547935,2738.1,2738.0,3.93822]
[1739409365078,0.00547935,2738.1,2738.0,44.73822]
[1739409365480,0.00547935,2738.1,2738.0,3.93822]
[1739409365968,0.00547935,2738.1,2738.0,47.89006101]
[1739409366173,0.5361,2738.8,2738.6,0.73025]
[1739409366376,1.653,2738.7,2738.6,0.73025]
[1739409366577,1.653,2738.7,2738.4,1.8597]
[1739409366773,1.653,2738.7,2738.5,0.73029]
[1739409367176,1.653,2738.7,2738.6,3.93806]
[1739409368073,0.5361,2738.8,2738.6,3.2078]
[1739409368274,1.653,2738.7,2738.6,3.2078]
[1739409368477,0.00547935,2738.9,2738.8,0.73021]
[1739409368677,1.65847935,2738.9,2738.8,0.73021]
[1739409369379,0.00547935,2738.9,2738.8,0.73021]
[1739409370284,1.653,2739.4,2738.8,6.0]
[1739409370479,1.653,2739.4,2739.3,3.93787]
[1739409371875,2.38305,2739.4,2739.3,3.2078]
[1739409372083,1.653,2739.4,2739.3,3.2078]
[1739409372578,1.653,2739.4,2739.3,3.93787]
[1739409374278,1.653,2739.5,2739.4,0.73005]
[1739409374484,1.653,2739.5,2739.4,1.28495]
[1739409375483,0.00547935,2739.6,2739.4,0.5549]
[1739409375678,0.00547935,2739.6,2739.5,0.73002]
[1739409376087,0.00547935,2739.6,2739.5,41.53002]
[1739409377579,0.00547935,2739.6,2739.5,0.73002]
[1739409380181,0.00547935,2739.6,2739.3,3.2078]
[1739409380385,0.73005,2739.4,2739.3,3.2078]
[1739409380589,1.653,2739.5,2739.4,0.73005]
[1739409382284,1.653,2739.5,2739.3,3.2078]
[1739409382490,1.653,2739.5,2739.4,0.73005]
[1739409383391,0.73005,2739.4,2739.3,3.2078]
[1739409383579,1.27515,2739.4,2739.3,3.2078]
[1739409383988,0.5451,2739.4,2739.1,0.00547935]
[1739409384289,3.88194101,2739.2,2739.1,0.00547935]
[1739409384691,4.44434101,2739.2,2739.1,0.00547935]
[1739409384992,7.65214101,2739.2,2739.1,0.00547935]
[1739409385291,4.44434101,2739.2,2739.1,0.00337332]
[1739409385586,0.5624,2739.2,2739.1,0.00337332]
[1739409385789,0.5624,2739.2,2739.1,0.73350332]
[1739409385994,0.5624,2739.2,2739.1,3.94130332]
[1739409386194,2.2144,2739.2,2739.1,3.94130332]
[1739409386585,0.5624,2739.2,2739.1,3.94130332]
[1739409386786,2.2154,2739.2,2739.1,3.94130332]
[1739409387587,2.2144,2739.2,2739.1,3.21117332]
[1739409387791,0.5624,2739.2,2739.1,3.94130332]
[1739409388089,1.652,2739.2,2739.1,3.94130332]
[1739409388388,0.57117935,2739.6,2739.5,0.73002]
[1739409388690,0.57117935,2739.6,2739.1,3.21117332]
[1739409388691,0.57117935,2739.6,2739.4,3.2078]
[1739409388891,2.22317935,2739.6,2739.5,41.53002]
[1739409389085,2.22317935,2739.6,2739.5,0.73002]
[1739409389886,2.95319935,2739.6,2739.4,44.0078]
[1739409390193,2.22317935,2739.6,2739.5,0.73002]
[1739409390799,2.95316935,2739.6,2739.5,0.73002]
[1739409391094,1.65747935,2739.6,2739.5,0.73002]
[1739409391395,0.00547935,2739.6,2739.5,0.73002]
[1739409392590,0.5396,2740.3,2739.5,6.29118555]
[1739409392797,0.5627,2740.7,2740.4,0.72978]
[1739409392991,1.652,2740.3,2740.2,3.93763]
[1739409394290,1.652,2740.3,2739.9,3.2078]
[1739409394486,1.0989,2740.2,2739.8,3.2078]
[1739409394692,0.7299,2740.0,2739.8,3.2078]
[1739409394991,0.72989,2740.1,2739.8,3.93774]
[1739409395491,1.0989,2740.2,2739.8,3.93774]
[1739409395794,0.7299,2740.0,2739.8,3.93773]
[1739409395991,0.7299,2740.0,2739.8,3.2078]
[1739409396194,1.0989,2740.2,2739.8,3.93773]
[1739409396491,1.0989,2740.2,2739.8,3.2078]
[1739409397197,0.72991,2739.9,2739.8,3.2078]
[1739409397494,0.73003,2739.5,2739.3,3.2078]
[1739409397693,2.7838,2739.4,2739.3,3.93787]
[1739409398698,3.51385,2739.4,2739.3,3.2078]
[1739409399489,2.7838,2739.4,2739.3,3.2078]
[1739409399696,2.7838,2739.4,2739.3,2.70547219]
[1739409400294,1.1318,2739.4,2739.3,2.70547219]
[1739409400494,1.652,2739.5,2739.4,0.73005]
[1739409401196,1.652,2739.5,2739.3,1.97540219]
[1739409401393,1.652,2739.5,2739.4,0.73005]
[1739409401597,1.652,2739.5,2739.3,1.97540219]
[1739409401895,1.652,2739.5,2739.3,2.70546219]
[1739409402396,1.652,2739.5,2739.4,0.73005]
[1739409402998,2.38203,2739.5,2739.3,2.70546219]
[1739409403394,1.652,2739.5,2739.4,0.73005]
[1739409405195,0.559,2740.0,2739.3,1.97540219]
[1739409405500,4.0548,2739.9,2739.3,1.97540219]
[1739409405693,2.23,2739.9,2739.3,1.97540219]
[1739409405889,2.23,2739.9,2739.3,2.70547219]
[1739409406299,0.73005,2739.4,2739.3,1.97540219]
[1739409406501,2.38205,2739.4,2739.3,1.97540219]
[1739409407895,1.652,2739.4,2739.3,2.70547219]
[1739409408098,0.578,2739.9,2739.8,0.72994]
[1739409408300,2.23,2739.9,2739.8,0.72994]
[1739409408799,2.95991,2739.9,2739.6,3.2078]
[1739409408997,1.30791,2739.9,2739.7,0.72995]
[1739409409197,0.72997,2739.7,2739.6,3.2078]
[1739409409399,0.72999,2739.7,2739.3,3.2078]
[1739409409591,0.73001,2739.6,2739.4,0.73004]
[1739409410101,0.73001,2739.6,2739.3,3.2078]
[1739409410299,0.72998,2739.7,2739.5,0.73001]
[1739409411207,0.73,2739.6,2739.4,0.73005]
[1739409411404,0.72998,2739.7,2739.5,0.73]
[1739409411802,1.652,2739.8,2739.3,3.2078]
[1739409411803,1.652,2739.8,2739.7,0.72997]
[1739409412407,0.578,2739.9,2739.8,0.72994]
[1739409412606,0.00547935,2740.5,2740.4,0.72978]
[1739409412802,0.00547935,2740.5,2740.4,3.93758]
[1739409413402,0.00547935,2740.5,2740.0,1.1379]
[1739409413403,0.72982,2740.3,2740.1,3.2078]
[1739409413597,0.72983,2740.2,2740.1,3.2078]
[1739409413797,0.5441,2740.4,2740.1,3.2078]
[1739409414015,0.5441,2740.4,2740.2,0.72982]
[1739409414209,0.5441,2740.4,2740.1,3.2078]
[1739409414409,0.72983,2740.2,2740.1,3.2078]
[1739409414603,2.38183,2740.2,2740.1,3.2078]
[1739409414806,1.652,2740.2,2740.1,3.2078]
[1739409415103,1.652,2740.2,2739.7,3.2078]
[1739409415409,3.7871,2740.1,2739.7,3.2078]
[1739409415608,0.72994,2739.8,2739.7,3.2078]
[1739409415815,3.7871,2740.1,2739.4,3.2078]
[1739409416119,0.5441,2739.7,2739.4,3.2078]
[1739409416300,0.73002,2739.5,2739.4,3.2078]
[1739409416703,2.38301,2739.6,2739.4,3.2078]
[1739409417497,1.653,2739.6,2739.4,3.2078]
[1739409417901,1.653,2739.6,2739.4,3.93784]
[1739409418308,0.5441,2739.7,2739.4,3.2078]
[1739409418514,1.652,2739.6,2739.5,0.73002]
[1739409418706,1.652,2739.6,2739.5,0.576]
[1739409418901,1.652,2739.6,2739.5,1.30602]
[1739409419613,1.652,2739.6,2739.5,1.89692]
[1739409420403,1.652,2739.6,2739.5,1.30602]
[1739409420606,2.38199,2739.6,2739.5,0.576]
[1739409421329,4.79734594,2739.6,2739.1,3.21117332]
[1739409421503,0.73005,2739.4,2739.1,3.21117332]
[1739409421705,0.73005,2739.4,2739.2,0.73008]
[1739409421905,0.73009,2739.3,2739.1,3.21117332]
[1739409422109,0.5822,2739.5,2739.1,3.21117332]
[1739409422413,0.73007,2739.4,2739.1,3.21117332]
[1739409422614,1.31224,2739.5,2739.3,0.73007]
[1739409422814,0.5822,2739.5,2739.1,3.21117332]
[1739409423109,0.5822,2739.5,2739.4,0.73005]
[1739409423618,1.31222,2739.5,2739.3,0.73006]
[1739409423912,0.7301,2739.2,2739.1,3.21117332]
[1739409424120,3.9379,2739.2,2739.1,0.00337332]
[1739409424410,7.15172857,2739.2,2738.5,3.2078]
[1739409424614,0.73017,2739.0,2738.6,0.73025]
[1739409424816,0.73017,2739.0,2738.7,0.73023]
[1739409425008,2.2445,2739.1,2738.5,3.93807]
[1739409425209,0.7302,2738.9,2738.5,3.2078]
[1739409425404,0.73023,2738.8,2738.5,3.21327935]
[1739409425805,0.73019,2738.9,2738.5,3.21327935]
[1739409426012,2.24997935,2739.1,2738.5,3.21327935]
[1739409426208,0.73016,2739.0,2738.7,0.73022]
[1739409426410,2.24997935,2739.1,2738.7,0.73021]
[1739409426711,0.73015,2739.0,2738.7,0.73021]
[1739409427307,2.24997935,2739.1,2738.5,3.21327935]
[1739409427513,0.73022,2738.8,2738.5,3.94354935]
[1739409427711,2.24997935,2739.1,2738.5,3.21327935]
[1739409428107,0.73017,2739.0,2738.7,0.73022]
[1739409428310,0.73018,2738.9,2738.7,0.73022]
[1739409428509,0.73017,2739.0,2738.7,0.73022]
[1739409428916,2.24997935,2739.1,2738.6,0.73025]
[1739409429217,2.24997935,2739.1,2738.5,3.21327935]
[1739409429413,0.73018,2739.0,2738.7,0.73022]
[1739409429611,0.73018,2739.0,2738.5,3.21327935]
[1739409429612,2.98012935,2739.1,2738.8,0.73019]
[1739409429920,0.73016,2739.0,2738.7,0.73022]
[1739409430424,2.24997935,2739.1,2738.5,3.21327935]
[1739409430612,2.98011935,2739.1,2738.5,3.21327935]
[1739409430807,2.24997935,2739.1,2738.5,3.21327935]
[1739409431013,0.73019,2738.9,2738.7,0.73022]
[1739409431321,1.652,2738.8,2738.5,3.21327935]
[1739409431623,0.00547935,2739.1,2739.0,0.73015]
[1739409431813,1.65747935,2739.1,2739.0,0.73015]
[1739409432122,0.00547935,2739.1,2739.0,0.73015]
[1739409432312,1.65847935,2739.1,2739.0,1.28255]
[1739409433324,1.65847935,2739.1,2738.9,3.2078]
[1739409433618,1.65847935,2739.1,2738.5,0.00547935]
[1739409433619,1.65847935,2739.1,2738.6,0.5524]
[1739409433917,0.5576,2739.0,2738.6,0.5524]
[1739409434119,0.73023,2738.7,2738.6,0.5524]
[1739409434818,0.5654,2738.9,2738.6,0.5524]
[1739409435219,0.73021,2738.8,2738.6,1.28264]
[1739409435517,0.73023,2738.7,2738.6,0.5524]
[1739409436621,0.73026,2738.6,2738.5,0.00547935]
[1739409436817,5.59106,2738.6,2738.5,0.00547935]
[1739409437817,3.93806,2738.6,2738.5,0.00547935]
[1739409438015,2.38326,2738.6,2738.5,0.00547935]
[1739409438720,5.59106,2738.6,2738.5,0.00547935]
[1739409439714,1.82581,2738.4,2737.4,44.0078]
[1739409439913,7.15172857,2738.3,2737.5,0.5825]
[1739409440321,0.73046,2737.9,2737.6,0.73051]
[1739409440520,1.653,2737.8,2737.5,0.5825]
[1739409440823,0.73053,2737.6,2737.5,0.5825]
[1739409441215,2.38352,2737.7,2737.5,0.5825]
[1739409441418,0.73053,2737.6,2737.5,0.5825]
[1739409441622,0.5395,2737.9,2737.5,1.31305]
[1739409441926,1.653,2737.6,2737.5,1.31305]
[1739409442825,1.653,2737.6,2737.5,0.5825]
[1739409443024,2.38353,2737.6,2737.5,0.5825]
[1739409443627,0.73055,2737.5,2737.4,0.00547935]
[1739409443823,1.31485,2737.5,2737.4,0.00547935]
[1739409444026,0.73061,2737.3,2737.2,0.5525]
[1739409444825,0.5672,2737.4,2737.2,0.5525]
[1739409445023,0.5672,2737.4,2737.2,1.28313]
[1739409446627,1.29779,2737.4,2737.2,0.5525]
[1739409446829,1.29779,2737.4,2737.2,1.28312]
[1739409446830,0.5672,2737.4,2737.2,1.28312]
[1739409448019,1.29778,2737.4,2737.2,1.28312]
[1739409448827,0.5672,2737.4,2737.2,0.5525]
[1739409449225,0.73061,2737.3,2737.2,0.5525]
[1739409449930,0.5672,2737.4,2737.0,0.00225067]
[1739409450130,0.73066,2737.1,2737.0,0.00225067]
[1739409450429,2.38366,2737.1,2737.0,0.00225067]
[1739409452637,1.653,2737.1,2737.0,0.00225067]
[1739409452836,1.653,2737.1,2737.0,0.73294067]
[1739409455241,2.38366,2737.1,2737.0,0.00225067]
[1739409456151,5.53610853,2737.1,2737.0,0.00225067]
[1739409456439,0.73074,2736.8,2736.7,0.536]
[1739409457042,3.15244853,2736.8,2736.3,3.2078]
[1739409457236,0.5408,2736.7,2736.5,0.5834]
[1739409457540,0.5408,2736.7,2736.6,0.73079]
[1739409457734,2.1938,2736.7,2736.6,0.73079]
[1739409457927,0.73079,2736.6,2736.5,0.5834]
[1739409458132,2.1938,2736.7,2736.5,0.5834]
[1739409458340,2.1938,2736.7,2736.6,0.73079]
[1739409460042,0.73079,2736.6,2736.5,1.31421]
[1739409460241,2.92459,2736.7,2736.5,1.31421]
[1739409460439,2.92459,2736.7,2736.6,0.73079]
[1739409460630,2.1938,2736.7,2736.6,0.73079]
[1739409462650,3.15244853,2737.1,2736.8,0.73072]
[1739409462943,2.38469,2737.0,2736.9,0.5668]
[1739409463146,3.48078,2737.0,2736.4,0.73083]
[1739409463443,0.73082,2736.5,2736.4,0.5668]
[1739409463644,2.38482,2736.5,2736.4,0.5668]
[1739409464038,1.654,2736.5,2736.4,0.5668]
[1739409464235,2.38482,2736.5,2736.4,1.29765]
[1739409464440,1.654,2736.5,2736.4,1.29765]
[1739409466442,4.22524853,2737.1,2736.4,0.5668]
[1739409466743,0.73082,2736.6,2736.5,0.73082]
[1739409466944,0.73082,2736.5,2736.4,1.29765]
[1739409467239,1.654,2736.5,2736.4,1.29765]
[1739409468148,2.38482,2736.5,2736.4,0.5668]
[1739409469239,2.96992,2736.5,2736.4,0.5668]
[1739409470046,2.2391,2736.5,2736.4,0.5668]
[1739409470242,0.73095,2736.1,2735.9,3.2078]
[1739409470544,0.73093,2736.1,2736.0,0.581]
[1739409470750,0.73093,2736.1,2735.6,3.93884]
[1739409470751,1.654,2736.1,2735.6,3.2078]
[1739409470952,0.73101,2735.8,2735.7,0.581]
[1739409471252,1.654,2736.1,2735.6,3.2078]
[1739409471253,0.73103,2735.7,2735.6,3.2078]
[1739409471547,1.29783,2735.7,2735.6,3.2078]
[1739409471746,0.5668,2735.7,2735.6,3.2078]
[1739409473243,0.5668,2735.7,2735.4,0.581]
[1739409473444,0.73109,2735.5,2735.4,0.581]
[1739409474041,1.654,2735.6,2735.4,0.581]
[1739409474243,4.80644853,2735.6,2735.1,3.2078]
[1739409474442,0.73114,2735.3,2735.2,0.5585]
[1739409474643,1.654,2735.6,2735.2,0.5585]
[1739409474847,1.654,2735.6,2735.4,0.7311]
[1739409475342,4.80644853,2735.6,2735.2,0.5585]
[1739409475546,3.2078,2735.5,2735.2,0.5585]
[1739409476052,1.654,2735.6,2735.3,3.2078]
[1739409476243,3.15244853,2735.9,2735.3,3.2078]
[1739409476444,1.654,2735.8,2735.7,0.73102]
[1739409476653,1.654,2735.8,2735.6,0.73105]
[1739409476948,0.73105,2735.7,2735.4,0.7311]
[1739409477348,0.73105,2735.7,2735.4,0.73111]
[1739409477552,1.654,2735.8,2735.3,3.2078]
[1739409477853,2.38502,2735.8,2735.3,3.2078]
[1739409478048,2.38502,2735.8,2735.5,0.73107]
[1739409478366,1.654,2735.7,2735.6,0.73106]
[1739409480047,1.654,2735.7,2735.3,3.2078]
[1739409480253,2.38504,2735.7,2735.6,0.73106]
[1739409480440,1.654,2735.7,2735.3,3.2078]
[1739409480842,1.654,2735.7,2735.3,3.93893]
[1739409481248,3.15244853,2735.6,2734.8,3.2078]
[1739409481447,3.15244853,2735.6,2735.1,0.73119]
[1739409481448,0.73116,2735.3,2735.1,0.73119]
[1739409481643,1.654,2735.2,2735.1,0.73119]
[1739409482659,1.654,2735.2,2735.1,3.93899]
[1739409483158,1.654,2735.2,2735.1,3.2078]
[1739409483353,5.03515,2736.1,2735.1,3.2078]
[1739409483354,3.15244853,2736.2,2735.1,12.36024853]
[1739409483651,1.654,2736.1,2736.0,0.73095]
[1739409483857,1.654,2736.1,2736.0,3.2078]
[1739409484161,1.654,2736.1,2736.0,3.93875]
[1739409484460,0.00547935,2736.3,2736.2,0.7309]
[1739409484756,6.14744853,2737.9,2736.4,1.82712]
[1739409484757,5.02753853,2737.4,2736.4,1.82712]
[1739409484951,1.654,2737.3,2737.1,0.73065]
[1739409485150,3.15244853,2737.4,2737.1,0.73065]
[1739409485351,1.654,2737.3,2737.1,0.73065]
[1739409485559,1.654,2737.3,2736.9,3.2078]
[1739409485749,1.654,2737.3,2736.9,3.21327935]
[1739409486149,3.15244853,2737.1,2736.9,0.00547935]
[1739409486351,1.30979,2737.0,2736.9,0.00547935]
[1739409487153,4.51759,2737.0,2736.9,0.00547935]
[1739409487552,1.30979,2737.0,2736.9,0.00547935]
[1739409487861,2.2331,2737.0,2736.9,0.00547935]
[1739409488653,2.96379,2737.0,2736.9,0.00547935]
[1739409488860,2.2331,2737.0,2736.9,0.00547935]
[1739409489758,2.96379,2737.0,2736.9,0.00547935]
[1739409490062,10.12246426,2737.0,2736.9,0.00547935]
[1739409491563,0.73075,2736.8,2736.4,0.73083]
[1739409491765,10.12247426,2737.0,2736.6,0.73077]
[1739409492065,9.39177426,2737.0,2736.6,0.73079]
[1739409492361,9.39177426,2737.0,2736.7,0.73077]
[1739409492960,9.39177426,2737.0,2736.8,0.73073]
[1739409493166,10.12246426,2737.0,2736.5,3.2078]
[1739409493668,9.39177426,2737.0,2736.6,0.73079]
[1739409493869,0.73073,2736.9,2736.6,0.73079]
[1739409494166,9.39177426,2737.0,2736.5,3.2078]
[1739409494465,0.73079,2736.6,2736.2,0.5675]
[1739409494668,1.654,2736.5,2736.2,1.29838]
[1739409495175,1.654,2736.5,2735.8,3.7439]
[1739409495361,8.24877426,2736.4,2735.8,4.2983]
[1739409495556,8.24877426,2736.4,2735.8,3.7622]
[1739409495756,0.73098,2735.9,2735.8,3.2078]
[1739409495964,1.654,2735.9,2735.4,3.7899]
[1739409496166,1.32172,2735.8,2735.5,0.73107]
[1739409496556,4.54157426,2735.8,2735.4,3.7899]
[1739409496764,3.7854,2735.7,2735.1,44.0078]
[1739409496963,3.95087426,2735.5,2735.0,0.5821]
[1739409497156,1.654,2735.4,2735.0,0.5821]
[1739409497369,0.73121,2735.1,2734.8,3.2078]
[1739409497869,0.73118,2735.2,2734.8,3.93907]
[1739409498272,4.8618,2735.4,2734.8,3.2078]
[1739409498571,4.8618,2735.4,2734.5,41.3821]
[1739409498572,3.95087426,2734.9,2734.5,0.5821]
[1739409498768,1.654,2734.8,2734.5,0.5821]
[1739409499072,0.73133,2734.6,2734.3,40.8]
[1739409499293,0.73134,2734.6,2734.0,1.30567]
[1739409499565,3.95087426,2734.6,2734.0,0.5742]
[1739409499762,3.95635361,2734.6,2734.2,3.2078]
[1739409500164,3.95635361,2734.6,2734.2,3.93922]
[1739409500871,3.95635361,2734.6,2734.2,3.2078]
[1739409501072,0.73136,2734.5,2734.0,0.5742]
[1739409501268,0.73137,2734.5,2734.0,0.73148]
[1739409501465,4.68769361,2734.6,2734.1,0.73146]
[1739409501665,0.00547935,2734.6,2734.4,0.73137]
[1739409501979,1.654,2734.5,2734.4,0.73137]
[1739409502265,1.654,2734.5,2734.3,1.27889]
[1739409502471,1.654,2734.5,2734.3,0.5475]
[1739409503477,1.654,2734.5,2734.4,0.73138]
[1739409503664,1.654,2734.5,2734.3,1.2789]
[1739409503975,1.654,2734.5,2734.3,0.5475]
[1739409504671,1.654,2734.5,2734.3,1.27891]
[1739409505369,2.38537,2734.5,2734.3,0.5475]
[1739409505670,1.654,2734.5,2734.3,0.5475]
[1739409506563,1.654,2734.5,2734.4,0.73138]
[1739409506768,1.654,2734.5,2734.3,0.5475]
[1739409507168,1.654,2734.5,2734.4,0.73138]
[1739409507475,1.654,2734.5,2734.3,1.27889]
[1739409507668,0.73138,2734.4,2734.3,0.5475]
[1739409507874,0.73138,2734.4,2734.0,0.73147]
[1739409507875,0.73141,2734.3,2734.0,0.73147]
[1739409508179,1.654,2734.5,2733.9,3.2078]
[1739409508572,0.73139,2734.4,2734.1,0.73145]
[1739409508773,1.654,2734.5,2733.9,3.2078]
[1739409508976,2.38537,2734.5,2734.2,3.93922]
[1739409509173,0.00547935,2734.6,2734.2,3.2078]
[1739409509479,1.65947935,2734.6,2734.5,3.93915]
[1739409512479,0.00547935,2734.6,2734.5,3.93915]
[1739409512775,1.66047935,2734.6,2734.5,3.93915]
[1739409514577,0.00547935,2734.6,2734.5,3.93915]
[1739409514780,3.93893,2735.4,2734.5,14.98701426]
[1739409515077,1.655,2735.3,2735.2,0.73117]
[1739409515881,1.655,2735.3,2735.0,40.8]
[1739409516075,0.73119,2735.1,2735.0,40.80547935]
[1739409516276,0.73119,2735.1,2735.0,0.00547935]
[1739409516472,5.5423126,2735.3,2735.2,0.73117]
[1739409516676,4.8111626,2735.3,2735.2,0.73117]
[1739409516877,1.655,2735.3,2735.2,0.73117]
[1739409517182,0.73112,2735.4,2735.3,0.73114]
[1739409517377,0.58707935,2735.5,2735.0,0.00547935]
[1739409517682,0.00547935,2735.5,2735.4,0.73111]
[1739409517882,1.65947935,2735.5,2735.3,0.73113]
[1739409518081,0.73111,2735.4,2735.3,0.73113]
[1739409518376,0.73117,2735.2,2735.1,0.73119]
[1739409518579,0.73117,2735.2,2735.0,0.73667935]
[1739409518978,0.5399,2735.4,2735.0,0.00547935]
[1739409519177,0.73119,2735.1,2735.0,0.00547935]
[1739409519400,0.5399,2735.4,2735.0,0.00547935]
[1739409519576,0.73116,2735.3,2735.1,0.73118]
[1739409519882,0.5399,2735.4,2735.3,0.73114]
[1739409520181,0.5399,2735.4,2735.1,3.2078]
[1739409520182,1.654,2735.4,2735.1,3.2078]
[1739409520382,1.654,2735.4,2735.3,0.73114]
[1739409521177,0.00547935,2735.5,2735.1,3.2078]
[1739409521382,1.65947935,2735.5,2735.4,3.93891]
[1739409523383,0.00547935,2735.5,2735.4,3.93891]
[1739409527491,0.00547935,2735.5,2735.4,11.04871]
[1739409528595,9.35e-06,2735.5,2735.4,11.04871]
[1739409529294,9.35e-06,2735.5,2735.4,51.84871]
[1739409530290,9.35e-06,2735.5,2735.4,45.84871]
[1739409530694,9.35e-06,2735.5,2735.4,51.84871]
[1739409532589,1.654,2736.4,2735.4,51.1176]
[1739409532789,1.654,2736.4,2736.3,3.93867]
[1739409533795,1.65947935,2736.6,2736.3,3.2078]
[1739409533992,1.65947935,2736.6,2736.5,0.73082]
[1739409534191,0.00547935,2736.6,2736.5,0.73082]
[1739409536197,0.00547935,2736.6,2736.5,41.53082]
[1739409538508,0.00547935,2736.6,2736.5,44.73862]
[1739409540603,0.00547935,2736.6,2736.5,53.8947826]
[1739409541010,2.228,2737.3,2736.5,53.1639626]
[1739409541206,2.228,2737.3,2737.2,0.73063]
[1739409541409,2.228,2737.3,2737.0,3.2078]
[1739409541607,0.73064,2737.2,2737.1,0.73064]
[1739409541914,0.7307,2737.0,2736.7,3.2078]
[1739409542210,2.228,2737.3,2736.8,0.00547935]
[1739409542211,0.73071,2736.9,2736.8,0.00547935]
[1739409542411,1.31591,2736.9,2736.8,0.00547935]
[1739409542809,0.73079,2736.6,2736.5,0.73081]
[1739409543005,0.5852,2736.9,2736.6,0.73079]
[1739409543006,0.73078,2736.7,2736.6,0.73079]
[1739409543912,2.2288,2736.8,2736.4,3.21327935]
[1739409544117,2.2288,2736.8,2736.7,0.73077]
[1739409545508,1.653,2736.8,2736.7,3.93857]
[1739409546418,1.84683,2737.3,2736.9,1.82675]
[1739409546419,1.653,2737.2,2736.9,1.82675]
[1739409546713,1.653,2737.2,2737.1,0.73066]
[1739409547617,0.5889,2737.3,2737.2,0.73063]
[1739409547918,0.00547935,2737.4,2737.3,0.73061]
[1739409548108,0.00547935,2737.4,2737.3,3.93841]
[1739409548714,0.00547935,2737.4,2737.3,4.48211]
[1739409548913,0.00547935,2737.4,2737.3,45.28211]
[1739409553019,0.73605935,2737.4,2737.3,3.2078]
[1739409553511,0.00547935,2737.4,2737.3,3.2078]
[1739409553921,0.00547935,2737.4,2737.3,3.93841]
[1739409554115,0.00547935,2737.4,2737.0,3.2078]
[1739409554318,0.00547935,2737.4,2736.6,1.82695]
[1739409554319,3.16164195,2737.4,2736.7,3.2078]
[1739409554519,0.7307,2737.0,2736.8,0.73072]
[1739409554719,1.0903,2736.9,2736.8,0.73072]
[1739409556719,0.73074,2736.8,2736.7,3.2078]
[1739409557319,1.0903,2736.9,2736.7,3.93855]
[1739409557320,1.6709,2736.9,2736.7,3.93855]
[1739409557523,1.6709,2736.9,2736.8,0.73074]
[1739409557822,1.0903,2736.9,2736.8,0.73074]
[1739409558421,0.73074,2736.8,2736.7,3.2078]
[1739409558817,3.1561626,2736.8,2736.5,40.8]
[1739409559024,0.73079,2736.6,2736.5,40.8]
[1739409559413,3.1561626,2736.8,2736.4,0.00547935]
[1739409559414,6.3639626,2736.8,2736.4,0.00547935]
[1739409559621,1.27192,2736.5,2736.4,0.00547935]
[1739409559824,2.92492,2736.5,2736.4,0.00547935]
[1739409561426,6.0810826,2736.5,2736.4,0.00547935]
[1739409561931,5.3502626,2736.5,2736.4,0.00547935]
[1739409562116,5.3502626,2736.5,2736.4,0.73632935]
[1739409562519,0.5411,2736.5,2736.4,0.73632935]
[1739409562720,7.0947126,2736.8,2736.6,0.73078]
[1739409562917,1.653,2736.7,2736.6,0.73078]
[1739409563129,2.38378,2736.7,2736.5,0.7308]
[1739409563516,2.38378,2736.7,2736.6,0.73079]
[1739409563517,1.653,2736.7,2736.6,0.73079]
[1739409563926,1.653,2736.7,2736.4,0.00547935]
[1739409564127,0.73082,2736.5,2736.4,0.00547935]